Cogmind - Beta 16.1 @@@ ROGUE MODE // 2026.03.03 @ 17:30:19 Player: Sen Result: Destroyed by Y-64 Sentinel with KE Penetrator Performance ------------- Evolutions (5) 2500 Regions Visited (7) 1400 Robots Destroyed (86) 430 Value Destroyed (2864) 2864 Prototype IDs (11) 220 Alien Tech Used (0) 0 Bonus (818) 818 TOTAL SCORE: 8232 Bonus ------- High Alert Combat Kills 18 Registered with UFD 300 Met Optimus in HQ 500 Cogmind --------- Core Integrity 0/1000 Matter 125/300 Energy 22/100 System Corruption 62% Temperature Cool (0) Movement Core (1500) Ox29 Location -5/Extension Parts ------- > --- POWER (2) -------- (None) > --- PROPULSION (4) --- Gravmag Array Experimental Gyrokinetic Inverter Experimental Gyrokinetic Inverter > --- UTILITY (8) ------ Advanced Heat Sink Huge Storage Unit Improved Signal Interpreter Targeting Computer Improved Launcher Guidance Computer Improved Target Analyzer Propulsion Shielding Layered Light Armor Plating > --- WEAPON (3) ------- Heavy Laser > --- INVENTORY (25) --- Improved Heat Sink Improved Trap Scanner Visual Processing Unit Launcher Loader Core Shielding Layered Light Armor Plating Improved Hardlight Generator Stealth Drone Bay (2/2) Stealth Drone Bay (2/2) Stealth Drone Bay (1/2) Scatter Rocket Array Datajack Improved Remote Datajack Power Maul Segregator PL-3XN's Ring of Power Peak State ------------ > --- POWER ------------ Light Deuterium Engine Light Angular Momentum Engine > --- PROPULSION ------- Gravmag Array Linear Gravjet Experimental Gyrokinetic Inverter > --- UTILITY ---------- Huge Storage Unit Improved Signal Interpreter Targeting Computer Improved Launcher Guidance Computer Improved Target Analyzer Stealth Drone Bay > --- WEAPON ----------- Wave Gun Heavy Gatling Laser Power Maul > --- INVENTORY -------- Improved Heat Sink Advanced Heat Sink Improved Trap Scanner Visual Processing Unit Launcher Loader Core Shielding Propulsion Shielding Layered Light Armor Plating Layered Light Armor Plating Improved Hardlight Generator Stealth Drone Bay Stealth Drone Bay Heavy Laser Improved EM Pulse Cannon Mini Grenade Launcher Scatter Rocket Array Datajack Improved Remote Datajack Segregator PL-3XN's Ring of Power [Rating: 93] Favorites ----------- Power Improved Deuterium Engine Engine Improved Deuterium Engine Reactor Light Antimatter Reactor Propulsion Wheel Treads Light Treads Leg Aluminum Leg Wheel Wheel Hover Unit Experimental Gyrokinetic Inverter Utility Huge Storage Unit Device Experimental Heat Sink Storage Huge Storage Unit Processor Improved Signal Interpreter Protection Core Shielding Weapon Improved Light Cannon Energy Gun Tesla Rifle Energy Cannon Heavy Ion Cannon Ballistic Gun Assault Rifle Ballistic Cannon Improved Light Cannon Launcher Scatter Rocket Array Special Weapon Mining Laser Impact Weapon Power Maul Slashing Weapon Segregator Build | -11 -10 -10 -10 -7 -7 -5 -5 ------- Run | Yrd Mat Min Sub Rec Scr Fac Ext Slots Evolved 10 | . . . . . . 10 . Power 1 | . . . . . . 1 . Propulsion 2 | . . . . . . 2 . Utility 6 | . . . . . . 6 . Weapon 1 | . . . . . . 1 . Parts Attached 117 | 6 21 3 2 6 4 70 5 Power 14 | 1 2 . . . 2 9 . Engine 13 | 1 2 . . . 2 8 . Core . | . . . . . . . . Reactor 1 | . . . . . . 1 . Propulsion 35 | 2 7 . . 2 1 23 . Treads 6 | . 2 . . . . 4 . Leg 11 | 2 . . . 1 . 8 . Wheel 14 | . 5 . . 1 1 7 . Hover 4 | . . . . . . 4 . Flight . | . . . . . . . . Utility 36 | 1 6 3 . 1 1 22 2 Device 18 | . 2 1 . . . 14 1 Storage 3 | 1 2 . . . . . . Processor 7 | . . . . 1 . 6 . Hackware . | . . . . . . . . Protection 8 | . 2 2 . . 1 2 1 Artifact . | . . . . . . . . Weapon 32 | 2 6 . 2 3 . 16 3 Energy Gun 11 | 1 . . . . . 9 1 Energy Cannon 4 | . . . . 2 . 2 . Ballistic Gun 3 | 1 1 . . . . 1 . Ballistic Cannon 6 | . 4 . . . . 2 . Launcher 3 | . . . 2 . . 1 . Special Weapon 2 | . 1 . . . . . 1 Impact Weapon 2 | . . . . 1 . 1 . Slashing Weapon 1 | . . . . . . . 1 Piercing Weapon . | . . . . . . . . Special Melee Weapon . | . . . . . . . . Unidentified Prototypes 5 | . . . . . . 5 . Corrupted Parts 7 | . . . . . . 7 . System Corruption 50 | . . . . . . 50 . Parts Lost 48 | . . . . 2 . 43 3 Power 9 | . . . . . . 8 1 Propulsion 16 | . . . . 1 . 15 . Utility 7 | . . . . . . 7 . Weapon 16 | . . . . 1 . 13 2 Highest Loss Streak 8 | . . . . 2 . 8 3 To Critical Strikes 1 | . . . . . . 1 . Average Backups 20 | 3 14 25 24 23 23 18 16 Power 1 | . 1 2 2 1 1 1 . Propulsion 4 | 1 5 7 6 4 4 4 . Utility 7 | . 3 10 10 10 10 5 11 Weapon 5 | . 4 5 5 5 6 5 4 Tool/Special . | . . . . . . . . Unused Backups 19 | . 1 1 . 2 9 2 4 Power 1 | . . . . . 1 . . Propulsion 5 | . 1 . . . 2 2 . Utility 6 | . . 1 . . 2 . 3 Weapon 6 | . . . . 2 4 . . Tool/Special 1 | . . . . . . . 1 Average Slot Usage (%) 98 | . 99 100 100 99 100 93 78 Engine 12 | . 14 14 14 14 14 9 4 Treads 2 | . 10 . . . . 2 . Leg 1 | . 1 1 . 1 . 3 . Wheel 22 | . 15 26 28 26 28 13 . Device 5 | . 4 12 . 3 . 16 4 Storage 12 | . 19 14 14 14 14 5 5 Processor 4 | . . . . 10 . 12 26 Protection 8 | . 3 1 14 . 13 8 3 Energy Gun 3 | . 4 . . . . 9 1 Energy Cannon 5 | . . . . 3 13 1 2 Ballistic Cannon 12 | . 17 27 23 13 14 . . Special Weapon 1 | . . . 2 9 . . 2 Peak Build Rating 93 | 6 12 12 12 15 22 93 92 Average Rating 26 | 5 9 11 11 12 19 61 85 On Entrance 18 | . 6 12 12 12 15 22 69 Avg Prop Armor Cover (%) 8 | . 12 . . . . 7 . Naked Turns . | . . . . . . . . Heaviest Build 132 | 13 100 94 94 97 103 132 113 Greatest Support 65 | 20 40 32 32 26 26 65 48 Greatest Overweight (x) 10 | . 9 2 2 3 5 10 2 Average Overweight (x) 3 | . 3 2 2 3 4 2 2 Largest Inventory Capacity 25 | 8 25 25 25 25 25 25 25 Average Capacity 24 | 7 21 25 25 25 25 25 25 Most Carried 25 | 4 25 25 25 25 25 25 23 Average Carried 21 | 3 14 24 24 24 24 19 20 Final Capacity 25 | 8 25 25 25 25 25 25 25 Final Carried 25 | 4 25 25 25 24 25 25 20 Scrap Suit Usage (%) 4 | . . . . . . 18 . Parts Cannibalized 5 | . . . . . . 5 . Class Distribution -------------------- 75% | Mutant 6% | Scavenger-Mutant 5% | Scavenger-Assassin 4% | Scrapper 4% | Scavenger-Skirmisher Dominant Class ---------------- Mutant | -10/Materials Mutant | -10/Mines Mutant | -10/Subcaves Mutant | -7/Recycling Mutant | -7/Scraptown Scavenger-Assassin | -5/Factory Scavenger-Mutant | -5/Extension Resources | -11 -10 -10 -10 -7 -7 -5 -5 ----------- Run | Yrd Mat Min Sub Rec Scr Fac Ext Matter Collected 3119 | 264 674 229 42 388 64 1458 . Remotely . | . . . . . . . . Salvage Created 3351 | 45 537 63 55 307 . 2294 50 Parts 148 | 5 33 2 8 9 . 90 1 Haulers Intercepted 1 | . . . . . . 1 . Recyclers Shooed 5 | . 1 . . 1 . 3 . Parts Field Recycled . | . . . . . . . . Retrieved Matter . | . . . . . . . . Parts Self-Destructed 7 | . . . 7 . . . . Prevented . | . . . . . . . . Parts Restored . | . . . . . . . . Kills | -11 -10 -10 -10 -7 -7 -5 -5 ------- Run | Yrd Mat Min Sub Rec Scr Fac Ext Combat Hostiles Destroyed 52 | . 11 2 5 2 . 31 1 Guns 21 | . 4 . . . . 17 . Cannons 19 | . 7 2 . 2 . 8 . AOE 10 | . . . 5 . . 5 . Classes Destroyed 16 | 1 6 . 2 1 . 6 . Worker 9 | . 3 . . . . 6 . Builder 6 | . 1 . . . . 5 . Tunneler 3 | 3 . . . . . . . Hauler 1 | . . . . . . 1 . Recycler 9 | . 1 . . 3 . 5 . Mechanic 1 | . . . . . . 1 . Operator 2 | . 1 . . . . 1 . Watcher 3 | . 2 . . . . . 1 Swarmer 8 | . . . 4 . . 4 . Grunt 25 | . 11 2 . . . 12 . Sentry 3 | . . . . 2 . . 1 Specialist 2 | . . . . . . 2 . Hunter 3 | . . . . . . 3 . Programmer 9 | . . . . . . 9 . Heavy 1 | . . . . . . 1 . Subdweller 1 | . . . 1 . . . . Best Kill Streak 13 | 2 4 2 4 5 . 13 2 Combat Bots Only 6 | . 3 2 4 2 . 6 1 Max Kills in Single Turn 6 | 1 1 1 2 1 . 6 1 Gunslinging . | . . . . . . . . Exploded 3 | . . . 2 . . 3 . Melee . | . . . . . . . . Uniques/NPCs Destroyed . | . . . . . . . . Combat | -11 -10 -10 -10 -7 -7 -5 -5 -------- Run | Yrd Mat Min Sub Rec Scr Fac Ext Hostile Shots Fired 554 | . 70 8 6 126 . 306 38 Missed 158 | . 12 5 3 45 . 82 11 Hits 396 | . 58 3 3 81 . 224 27 Melee 1 | . . . . . . 1 . Projectile 395 | . 58 3 3 81 . 223 27 Critical Strikes 12 | . 1 . . . . 10 1 Part Disruptions 1 | . . . . . . 1 . Damage Taken 6910 | . 720 49 51 626 . 4698 766 Core 1168 | . 66 13 . 87 . 621 381 Absorbed by Shields 74 | . . . . . . . 74 Redirected to Shielding 85 | . . 3 . . . 82 . Ignored by Resistances 121 | . . . . . . 121 . Regen/Repaired (Parts) 71 | . 31 . . . . 40 . Core Remaining (%) 66 | 100 . . . . 33 . . Volleys Fired 225 | 5 76 5 12 23 . 97 7 Largest 3 | 2 2 2 2 2 . 3 3 Hottest 280 | 70 100 66 133 100 . 280 168 Shots Fired 500 | 10 146 10 22 38 . 258 16 Gun 232 | 10 40 . . . . 176 6 Cannon 234 | . 100 10 11 31 . 78 4 Launcher 17 | . . . 7 . . 4 6 Special 17 | . 6 . 4 7 . . . Kinetic 208 | 5 120 10 11 16 . 46 . Thermal 202 | 5 26 . 4 22 . 139 6 Explosive 17 | . . . 7 . . 4 6 Electromagnetic 73 | . . . . . . 69 4 Robot Hit Streak 15 | 5 9 6 3 12 . 15 15 Robot Miss Streak 8 | 1 4 1 3 1 . 8 1 Penetration Max . | . . . . . . . . Secondary Targets 2 | . . . . . . 2 . Max Gunslinging Chain 1 | . . . . . . 1 . Shots Hit Robots 321 | 7 77 7 3 22 . 190 15 Core Hits 201 | 4 27 3 6 8 . 148 5 Critical Kills 2 | . 1 . . . . 1 . Critical Parts Destroyed 1 | . . . . . . 1 . Critical Strikes 16 | 1 6 . . 1 . 6 2 Burn 4 | 1 . . . . . 2 1 Destroy 1 | . 1 . . . . . . Blast 7 | . 5 . . 1 . 1 . Corrupt 2 | . . . . . . 1 1 Smash 2 | . . . . . . 2 . Melee Attacks 33 | . . . . 2 . 24 7 Thermal 7 | . . . . . . . 7 Impact 26 | . . . . 2 . 24 . Slashing . | . . . . . . . . Piercing . | . . . . . . . . Sneak Attacks 2 | . . . . . . 2 . Combat Hostiles . | . . . . . . . . Follow-up Attacks . | . . . . . . . . Damage Inflicted 9592 | 74 1363 125 292 541 . 6808 389 Guns 3894 | 74 363 . . . . 3358 99 Cannons 3213 | . 1000 125 22 541 . 1426 99 Explosions 2294 | . . . 270 . . 1833 191 Melee 191 | . . . . . . 191 . Ramming . | . . . . . . . . Kinetic 2352 | 13 1189 125 22 270 . 733 . Thermal 3867 | 61 174 . . 271 . 3262 99 Explosive 2194 | . . . 270 . . 1733 191 Electromagnetic 988 | . . . . . . 889 99 Impact 191 | . . . . . . 191 . Slashing . | . . . . . . . . Piercing . | . . . . . . . . Highest Corruption 62 | . . . . . . 62 62 Average Corruption 15 | . . . . . . 11 62 Corruption Purged . | . . . . . . . . Corruption Blocked . | . . . . . . . . Effects 66 | . . . . . . 57 9 Message Errors 6 | . . . . . . 4 2 Matter Fused 16 | . . . . . . 15 1 Heat Flow Errors 11 | . . . . . . 9 2 Energy Discharges 10 | . . . . . . 8 2 Parts Fused 1 | . . . . . . 1 . Data Loss (minor) 11 | . . . . . . 10 1 Data Loss (major) 3 | . . . . . . 3 . Misfires 1 | . . . . . . 1 . Misdirections 1 | . . . . . . 1 . Weapon Failures 6 | . . . . . . 5 1 Overload Shots . | . . . . . . . . Overflow Damage 277 | . 43 . 5 14 . 201 14 Projectiles 91 | . 43 . . 14 . 34 . Explosions 74 | . . . 5 . . 55 14 Melee 112 | . . . . . . 112 . Knockbacks 27 | . 16 4 . 1 . 6 . Impact . | . . . . . . . . Kinetic 17 | . 9 4 . . . 4 . Secondary 10 | . 7 . . 1 . 2 . Self-Inflicted Damage 62 | . . . 28 . . 34 . Shots 2 | . . . 1 . . 1 . Rammed . | . . . . . . . . Targets Rammed . | . . . . . . . . Kicked . | . . . . . . . . Crushed . | . . . . . . . . Highest Temperature 567 | 40 412 39 . 414 . 567 513 Average Temperature 140 | 20 116 24 . 164 . 178 186 Received Heat Transfer 1578 | . 417 27 . 198 . 810 126 Effects 35 | . 7 . . 1 . 24 3 Shutdowns 11 | . 3 . . 1 . 6 1 Energy Bleed 2 | . 2 . . . . . . Interference 5 | . . . . . . 5 . Short Circuit 2 | . 1 . . . . . 1 Damage (minor) 1 | . 1 . . . . . . Damage (major) 13 | . . . . . . 13 . Damage (core) 1 | . . . . . . . 1 Siege Activations . | . . . . . . . . Martial Activations . | . . . . . . . . Shielding Activations . | . . . . . . . . Robots Disrupted . | . . . . . . . . Combat Hostiles . | . . . . . . . . Robots Corrupted 1 | . . . . . . . 1 Combat Hostiles 1 | . . . . . . . 1 Parts Fried 4 | . . . . . . 4 . Impact Corruptions 4 | . . . . . . 4 . Robots Melted 1 | . . . . . . 1 . Combat Hostiles 1 | . . . . . . 1 . Parts Melted 21 | . 1 . . . . 20 . Heat Transferred 7057 | 259 518 . . 370 . 5651 259 Parts Sabotaged 2 | . . . . . . 2 . Parts Stolen . | . . . . . . . . Parts Stripped . | . . . . . . . . Power Chain Reactions 1 | . . . . . . 1 . Alert | -11 -10 -10 -10 -7 -7 -5 -5 ------- Run | Yrd Mat Min Sub Rec Scr Fac Ext Maximum Alert Level 2 | . . . . . . 2 1 Low Security (%) 93 | 100 100 100 . 100 . 84 87 Level 1 5 | . . . . . . 14 12 Level 2 . | . . . . . . 1 . Level 3 . | . . . . . . . . Level 4 . | . . . . . . . . Level 5 . | . . . . . . . . High Security . | . . . . . . . . Max Security . | . . . . . . . . Peak Influence 405 | 5 157 106 . 100 . 405 214 Initial 169 | . . 26 . 99 . . 169 Average 72 | . 51 26 . 13 . 123 170 Influence Increases 2166 | 15 439 80 215 69 . 1263 85 Destroy 0b10 Robot/C 1020 | . 220 40 80 40 . 620 20 Destroy 0b10 Robot/NC 170 | 15 40 . . 15 . 95 5 Destroy Leader 188 | . 54 10 . . . 122 2 Successful Hack 34 | . 34 . . . . . . Disable Machine 120 | . 15 30 . . . 75 . Destroy Structure 304 | . 16 . . 14 . 216 58 Lose Combat Pursuer 330 | . 60 . 135 . . 135 . Influence Decreases 2012 | 15 370 149 8 276 . 916 278 Entered New Map 329 | . . 43 . 108 . . 178 Time Decay 1217 | 15 370 106 8 148 . 500 70 Lost Part 466 | . . . . 20 . 416 30 Squads Dispatched 11 | . 2 . . . . 9 . Investigation 1 | . . . . . . 1 . Extermination 4 | . . . . . . 4 . Reinforcement 6 | . 2 . . . . 4 . Assault . | . . . . . . . . Garrison . | . . . . . . . . Intercept . | . . . . . . . . Searches Triggered . | . . . . . . . . Construction Impeded 2 | . . . . . . 2 . Haulers Reinforced . | . . . . . . . . Active Scanning Responses . | . . . . . . . . Cargo Convoy Interrupts 1 | . . . . . . 1 . Stealth | -11 -10 -10 -10 -7 -7 -5 -5 --------- Run | Yrd Mat Min Sub Rec Scr Fac Ext Distress Signals 7 | . 2 . . . . 4 1 Communications Jammed . | . . . . . . . . Distress Signals . | . . . . . . . . Times Spotted 96 | . 27 2 8 2 . 52 5 Peak Tracking Total 8 | . 5 2 6 2 . 8 4 Tactical Retreats 14 | . 4 . 2 . . 8 . Traps | -11 -10 -10 -10 -7 -7 -5 -5 ------- Run | Yrd Mat Min Sub Rec Scr Fac Ext Traps Triggered 2 | . . . . . . 1 1 Indirectly . | . . . . . . . . Trap Hack Attempts . | . . . . . . . . Triggered . | . . . . . . . . Disarmed . | . . . . . . . . Reprogrammed . | . . . . . . . . Reused . | . . . . . . . . Traps Extracted . | . . . . . . . . Installed . | . . . . . . . . Triggered . | . . . . . . . . Machines | -11 -10 -10 -10 -7 -7 -5 -5 ---------- Run | Yrd Mat Min Sub Rec Scr Fac Ext Machines Disabled 10 | . 1 2 2 . . 5 . Max in Single Turn 1 | . 1 1 1 . . 1 . Machines Repaired . | . . . . . . . . Machines Dismantled . | . . . . . . . . Machines Sabotaged . | . . . . . . . . Overloaded Fab Kills . | . . . . . . . . Hacking | -11 -10 -10 -10 -7 -7 -5 -5 --------- Run | Yrd Mat Min Sub Rec Scr Fac Ext Machines Accessed 31 | . 9 . 1 9 6 6 . Terminals 15 | . 6 . . 5 . 4 . Fabricators . | . . . . . . . . Repair Stations 2 | . 1 . . . . 1 . Recycling Units 7 | . 2 . . 4 . 1 . Scanalyzers . | . . . . . . . . Garrison Access . | . . . . . . . . Total Hacks 69 | . 24 . 3 15 19 8 . Successful 44 | . 14 . 3 6 19 2 . Failed 25 | . 10 . . 9 . 6 . Catastrophic 5 | . . . . 2 . 3 . Database Lockouts . | . . . . . . . . Manual 21 | . 13 . . 6 . 2 . Terminals 29 | . 17 . . 7 . 5 . Fabricators . | . . . . . . . . Repair Stations 4 | . 3 . . . . 1 . Recycling Units 14 | . 4 . . 8 . 2 . Scanalyzers . | . . . . . . . . Garrison Access . | . . . . . . . . Terminal Hacks 30 | . 6 . 3 1 19 1 . Record 17 | . 1 . 3 . 13 . . Robot Analysis 5 | . . . . . 5 . . Open Door 1 | . . . . . . 1 . Level Access Points 1 | . 1 . . . . . . Recall Reinforcements 1 | . 1 . . . . . . Zone Layout 4 | . 3 . . 1 . . . Proto ID Catalog 1 | . . . . . 1 . . Fabricator Hacks . | . . . . . . . . Repair Station Hacks 3 | . 3 . . . . . . Scan Component 1 | . 1 . . . . . . Repair 1 | . 1 . . . . . . Refit 1 | . 1 . . . . . . Recycling Unit Hacks 6 | . 2 . . 3 . 1 . Report Inventory 5 | . 1 . . 3 . 1 . Retrieve Components 1 | . 1 . . . . . . Scanalyzer . | . . . . . . . . Garrison Access Hacks . | . . . . . . . . Unauthorized Hacks 5 | . 3 . . 2 . . . Terminals 3 | . 3 . . . . . . Assimilate 1 | . 1 . . . . . . Botnet 1 | . 1 . . . . . . Operators 1 | . 1 . . . . . . Fabricators . | . . . . . . . . Repair Stations . | . . . . . . . . Recycling Units 2 | . . . . 2 . . . Monitor 2 | . . . . 2 . . . Scanalyzers . | . . . . . . . . Garrison Access . | . . . . . . . . Data Cores Recovered . | . . . . . . . . Used . | . . . . . . . . Hacking Detections 23 | . 9 . . 8 . 6 . Full Trace Events . | . . . . . . . . Feedback Events . | . . . . . . . . Feedback Blocked . | . . . . . . . . Robot Schematics Acquired . | . . . . . . . . Robots Built . | . . . . . . . . Authchips . | . . . . . . . . Time . | . . . . . . . . Total Robot Build Rating . | . . . . . . . . Part Schematics Acquired . | . . . . . . . . Parts Built . | . . . . . . . . Authchips . | . . . . . . . . Time . | . . . . . . . . Total Part Build Rating . | . . . . . . . . Part Studies Acquired . | . . . . . . . . Parts Repaired 1 | . 1 . . . . . . Time 26 | . 26 . . . . . . Parts Recycled . | . . . . . . . . Recycled Matter . | . . . . . . . . Retrieved Matter . | . . . . . . . . Retrieved Components 6 | . 6 . . . . . . Parts Scanalyzed . | . . . . . . . . Part Schematics Acquired . | . . . . . . . . Parts Damaged . | . . . . . . . . Bothacking | -11 -10 -10 -10 -7 -7 -5 -5 ------------ Run | Yrd Mat Min Sub Rec Scr Fac Ext Used RIF Installer . | . . . . . . . . Robots Hacked . | . . . . . . . . Non-combat . | . . . . . . . . Combat . | . . . . . . . . Robot Hacks Applied . | . . . . . . . . Relay Couplers Released . | . . . . . . . . Fabnet Peak Effective % . | . . . . . . . . Robots Rewired . | . . . . . . . . Allies Hacked . | . . . . . . . . Hacks Repelled . | . . . . . . . . Allies | -11 -10 -10 -10 -7 -7 -5 -5 -------- Run | Yrd Mat Min Sub Rec Scr Fac Ext Total Allies . | . . . . . . . . Largest Group . | . . . . . . . . Highest-Rated Group . | . . . . . . . . Highest-Rated Ally . | . . . . . . . . Initial UFD Resources 38 | . . . . . . 38 38 Total Orders 1 | . . . . . . . 1 EXPLORE 1 | . . . . . . . 1 Ally Attacks . | . . . . . . . . Total Damage . | . . . . . . . . Kills . | . . . . . . . . Allies Corrupted . | . . . . . . . . Allies Melted . | . . . . . . . . Intel | -11 -10 -10 -10 -7 -7 -5 -5 ------- Run | Yrd Mat Min Sub Rec Scr Fac Ext Active Infowar (turns) 2450 | . 425 367 . 273 . 1385 . Sensors 1402 | . . 25 . . . 1377 . Terrain 1075 | . 39 342 . . . 694 . Structural 659 | . 386 . . 273 . . . Traps 419 | . . . . . . 419 . Robot Analysis Total 5 | . . . . . 5 . . Derelict Logs Recovered 2 | . . . 1 . 1 . . Drone Launches 6 | . . . . . . . 6 Drone Recoveries 5 | . . . . . . . 5 Exploration | -11 -10 -10 -10 -7 -7 -5 -5 ------------- Run | Yrd Mat Min Sub Rec Scr Fac Ext Turns Passed 9396 | 149 1469 425 677 1021 3368 2147 140 Spaces Moved 5048 | 104 681 148 278 656 2271 875 35 Core 3 | 3 . . . . . . . Treads 144 | . 117 . . . . 27 . Legs 160 | 101 26 . . . . 33 . Wheels 4665 | . 538 148 278 656 2271 774 . Hover 76 | . . . . . . 41 35 Flight . | . . . . . . . . Fastest Speed 50 | 50 120 130 130 135 135 95 138 Average Speed 142 | 117 152 130 130 135 146 138 138 Slowest Speed 750 | 120 750 130 130 135 155 490 138 Overloaded Moves . | . . . . . . . . Propulsion Burnouts . | . . . . . . . . Robots Hopped . | . . . . . . . . Potential Cave-ins 1 | . . . . . . 1 . Cave-ins Triggered . | . . . . . . . . Exploration Rate (%) 51 | 4 98 37 28 90 89 17 50 Regions Visited 7 Branch Regions 5 Pre-discovered Areas . | . . . . . . . . Known Exits Taken 4 | . . . 1 1 1 1 . Unknown Exits Taken 3 | 1 1 1 . . . . . Scrap Searched 7 | . . 1 . . 6 . . Spaces Dug 36 | . 8 . . 9 . 19 . Terrain Destroyed 260 | . 10 . 36 14 . 137 63 Melee 21 | . . . . 2 . 19 . Projectile 36 | . 10 . . 12 . 14 . AOE 203 | . . . 36 . . 104 63 Terrain Rammed . | . . . . . . . . Walls Destroyed . | . . . . . . . . Machines Disabled . | . . . . . . . . Actions | -11 -10 -10 -10 -7 -7 -5 -5 --------- Run | Yrd Mat Min Sub Rec Scr Fac Ext Total 6680 | 118 945 366 561 734 2326 1533 97 Wait 989 | . 108 203 262 26 10 354 26 Move 5041 | 103 680 147 277 655 2270 874 35 Hop . | . . . . . . . . Pick Up 92 | 4 22 1 2 7 19 35 2 Fast Attach 35 | 6 8 . . . . 21 . Attach 60 | . 3 . . 4 1 47 5 Detach 27 | . 7 . . . . 19 1 Swap 106 | . 28 9 6 10 4 42 7 Drop 64 | . 13 1 2 7 19 20 2 Fire 225 | 5 76 5 12 23 . 97 7 Melee 33 | . . . . 2 . 24 7 Ram . | . . . . . . . . Kick . | . . . . . . . . Crush . | . . . . . . . . Escape Stasis 3 | . . . . . . . 3 Rewire 3 | . . . . . 3 . . Trap . | . . . . . . . . Miscellaneous 2 | . . . . . . . 2 Route ------- -11/Scrapyard -10/Materials (discovered 4 exits: *Mat x3 / [*Min]) -10/Mines -10/Subcaves -7/Recycling (discovered 2 exits: *Fac / *Scr) -7/Scraptown (discovered 2 exits: *Fac x2) -5/Factory -5/Extension History --------- Turn | Location | Event 53 | -11/Scrapyard | Discovered new exit (range 14) 150 | -11/Scrapyard | Entered Materials 209 | -10/Materials | Identified exit to Materials 301 | -10/Materials | Build established: Mutant 351 | -10/Materials | Repaired Ion Engine 1584 | -10/Materials | Discovered new exit (range 15) 1619 | -10/Materials | Entered Mines 2025 | -10/Mines | Discovered new exit (range 5) 2044 | -10/Mines | Entered Subcaves 2179 | -10/Subcaves | Learned Materials terminal intel 2212 | -10/Subcaves | Visited Clippyterm 2216 | -10/Subcaves | Identified exit to Recycling 2721 | -10/Subcaves | Entered Recycling 2992 | -7/Recycling | Discovered new exit (range 15) 3013 | -7/Recycling | Identified exit to Factory 3485 | -7/Recycling | Core integrity fell below 50% 3708 | -7/Recycling | Scanned before Scraplab entrance 3729 | -7/Recycling | Entered Scraplab 3740 | -7/Recycling | Discovered new exit (range 3) 3741 | -7/Recycling | Identified exit to Scraptown 3742 | -7/Recycling | Entered Scraptown 3960 | -7/Scraptown | Visited Junk Repository 3995 | -7/Scraptown | Visited UFD Registry 3995 | -7/Scraptown | Registered with UFD as "Technoskull" 4076 | -7/Scraptown | Visited Red Mages 4308 | -7/Scraptown | Heard Great Nut preacher, LISTEN AND RECITE! 4493 | -7/Scraptown | Scanned Subdweller tech in exchange for log data 4500 | -7/Scraptown | Learned Research interactive machine intel 4536 | -7/Scraptown | Discovered exit to Factory (range 5) 4675 | -7/Scraptown | Visited Fellowship of the Rings 4712 | -7/Scraptown | Visited SPCMW 4747 | -7/Scraptown | Visited Science Testing Area 4948 | -7/Scraptown | Visited Curators Association 4991 | -7/Scraptown | Visited Science Guys 5076 | -7/Scraptown | Visited DA-N13 Charitable Foundation 5088 | -7/Scraptown | Found DCF Scrap (25 items) 5424 | -7/Scraptown | Visited Abandonware Association 5441 | -7/Scraptown | Learned abandonware demo "OVRCLOCK.EXE" 5446 | -7/Scraptown | Learned abandonware demo "REVENGE.EXE" 5488 | -7/Scraptown | Visited Analyses Database 5526 | -7/Scraptown | Visited Scrap Suit Storage 5604 | -7/Scraptown | Visited Scrapoid Pod Storage 5674 | -7/Scraptown | Visited Chapter 10 5768 | -7/Scraptown | Visited Modified Component R&D 6115 | -7/Scraptown | Discovered exit to Factory (range 3) 6396 | -7/Scraptown | Guru changed UFD alias to "Macecutter" 6894 | -7/Scraptown | Found Scrap Suit 6997 | -7/Scraptown | Met Optimus 6997 | -7/Scraptown | Accepted into 0bPrime 7110 | -7/Scraptown | Entered Factory 7110 | -5/Factory | Evolved 10 slots: Power x1, Propulsion x2, Utility x6, Weapon x1 7411 | -5/Factory | Build established: Scrapper 7428 | -5/Factory | Lost 3 parts (1p1n1u) 7584 | -5/Factory | Lost 6 parts (1n2u3w) 7834 | -5/Factory | Found Prototype Launcher 8158 | -5/Factory | Lost 4 parts (2n2w) 8219 | -5/Factory | Lost 4 parts (2p2w) 8326 | -5/Factory | System corruption reached 10% 8332 | -5/Factory | Lost 7 parts (1p4n1u1w) 8406 | -5/Factory | Lost 8 parts (2p3n1u2w) 8724 | -5/Factory | Cargo convoy interrupted 8936 | -5/Factory | Identified Scatter Rocket Array 8983 | -5/Factory | Lost 7 parts (4n2u1w) 9087 | -5/Factory | Found Launcher Loader 9134 | -5/Factory | Found PL-3XN's Ring of Power 9150 | -5/Factory | Discovered new exit (range 5) 9153 | -5/Factory | Identified exit to Extension 9186 | -5/Factory | System corruption reached 30% 9247 | -5/Factory | Core integrity fell below 50% 9257 | -5/Factory | Entered Extension 9277 | -5/Extension | Lost 3 parts (1p2w) 9361 | -5/Extension | Core integrity fell below 20% 9397 | -5/Extension | Destroyed by Y-64 Sentinel with KE Penetrator Last Messages --------------- 09369_ Penetrated by Slug. 09370_ Lgt. Angular Momentum Engine lost to overload. 09370_ Y-64 Sentinel Unknown Treads blown off. 09371_ The unstable cave ceiling collapses. 09372_ Slug penetrates Wall. 09375_ System corrupted: Energy discharge (-17). 09375_ Penetrated by Slug. 09380_ Slug penetrates Wall. 09383_ Penetrated by Slug. 09386_ Slug penetrates Wall. 09391_ System corrupted: Heat flow error (+107). 09392_ Imp. EM Pulse Cannon destroyed. 09392_ Penetrated by Slug. 09393_ Wall collapses. 09394_ Critical hit (Burn: +37). 09394_ Mni. Grenade Launcher destroyed. 09397_ Penetrated by Slug. [Achievement: I Think I Know What's Going On] Map ----- +----------------------------------------------------+ | | | | | | | | | | | | | | | | | | | | | | | | | | | | | | | | | | | | | | | ??????????????????????????????? | | ??????????????????????????????? | | ?????????????????###??????????? | | ?????############# ##########?? | | ?????#= ### | | ?????#Y##### # ###+######## | | ?????#@;# #?# #?# ### | | ?????# #?# #?# #?? | | ???## = ll #?# #?# #?? | | ???# # # !%h #?# #?# #?? | | ???# #% *] = #?# #?# #?? | | ??#### # #?# #?# #?? | | ??# # +#########+#### ### | | ??# | | ??# # ####### ############# | | ??## ?????# ????????????# | | ???## ?????#?????????????# | | ?????# # ##??????????????????? | | ?????# ####???????????????????? | | ?????# #??????????????????????? | | ?????# #??????????????????????? | | ?????# #??????????????????????? | | ?????# #??????????????????????? | | ?????# #??????????????????????? | | ?????# #??????????????????????? | | ?????# #??????????????????????? | | ?????# #??????????????????????? | | ?????# #??????????????????????? | | ?????# #??????????????????????? | | ?????# #??????????????????????? | | ?????# #??????????????????????? | +----------------------------------------------------+ Best States ------------- Heat Dissipation 125 Energy Generation 34 Energy Capacity 480 Matter Stores 300 Matter Capacity 300 Sight Range 16 Robot Scan Range 15 Terrain Scan Range 16 Terrain Scan Density 85 Armor Coverage 225 Resistance: TH 20 Core Shielding 20 Propulsion Shielding 33 Evasion (%) 55 Targeting Accuracy 5 Launcher Accuracy 30 Target Analysis 6 Recoil Reduction 2 Item Schematics ----------------- None Robot Schematics ------------------ None Fabricated ------------ Nothing Repaired ---------- Ion Engine | 48% | -10/Materials Studied --------- None Alien Tech Used ----------------- None Achievements -------------- I Think I Know What's Going On Longdome?! Challenges ------------ None Game ------ Seed StorageThermalMatterbank Manual? 0 Play Time 02:03:10 Cumulative 123.0 hours Start 2026.03.03 @ 03:02:39 End 2026.03.03 @ 17:30:19 Sessions 3 Manual Loads 0 Difficulty Rogue Special Mode None Game No. 108 Rogue 108 Adventurer 0 Explorer 0 Win Type - Total 0 Types 0/0/0/0/0/0/0/0/0/0 Lore% 50 Gallery% 44 Achievement% 35 Wizard Run 0 Options --------- Layout 1 ASCII 1 Keyboard 1 Movement Numpad Keybinds 0 Fullscreen 1 Font 24/Smallcaps Map View 50x35 Zoom Use 0% Tactical HUD 1 Map Filters NONE Filters NONE Steam 1 RUN: 6a2e046a-58f1-4135-a961-0c7908e0e2d3